Cogmind - Beta 13 X1 @@@ ROGUE MODE // 2023.07.13 @ 01:23:26 Player: biogoob Result: Destroyed by 2I-JDV(g) with Beamcaster Performance ------------- Evolutions (0) 0 Regions Visited (2) 400 Robots Destroyed (12) 60 Value Destroyed (396) 396 Prototype IDs (0) 0 Alien Tech Used (0) 0 Bonus (0) 0 TOTAL SCORE: 856 Bonus ------- None Cogmind --------- Core Integrity 0/250 Matter 222/300 Energy 250/250 System Corruption 0% Temperature Cool (9) Movement Walking (260) Ox2 Location -10/Mines Parts ------- > --- POWER (1) -------- Ion Engine > --- PROPULSION (2) --- Light Treads Aluminum Leg > --- UTILITY (2) ------ Heat Sink Large Storage Unit > --- WEAPON (2) ------- Small Laser Grenade Launcher > --- INVENTORY (15) --- Aluminum Leg Medium Storage Unit Large Matter Pod (150) Weapon Shielding Weapon Shielding Small Laser Mining Laser Blade Trap Blade Trap Peak State ------------ > --- POWER ------------ Ion Engine > --- PROPULSION ------- Aluminum Leg Aluminum Leg > --- UTILITY ---------- Small Storage Unit Large Matter Pod > --- WEAPON ----------- Medium Laser Small Laser > --- INVENTORY -------- Ion Engine Light Treads Light Treads Wheel Compact Wheel Small Laser Grenade Launcher [Rating: 7] Favorites ----------- Power Ion Engine Engine Ion Engine Propulsion Light Treads Treads Light Treads Leg Aluminum Leg Wheel Wheel Utility Large Storage Unit Device Heat Sink Storage Large Storage Unit Weapon Small Laser Energy Gun Small Laser Launcher Grenade Launcher Build | -11 -10 -10 ------- Run | Jun Mat Min Slots Evolved . | . . . Power . | . . . Propulsion . | . . . Utility . | . . . Weapon . | . . . Parts Attached 15 | . 12 3 Power 2 | . 1 1 Engine 2 | . 1 1 Core . | . . . Reactor . | . . . Propulsion 5 | . 5 . Treads 2 | . 2 . Leg 1 | . 1 . Wheel 2 | . 2 . Hover . | . . . Flight . | . . . Utility 4 | . 4 . Device 1 | . 1 . Storage 3 | . 3 . Processor . | . . . Hackware . | . . . Protection . | . . . Artifact . | . . . Weapon 4 | . 2 2 Energy Gun 2 | . 2 . Energy Cannon . | . . . Ballistic Gun . | . . . Ballistic Cannon . | . . . Launcher 2 | . . 2 Special Weapon . | . . . Impact Weapon . | . . . Slashing Weapon . | . . . Piercing Weapon . | . . . Special Melee Weapon . | . . . Unidentified Prototypes . | . . . Parts Lost 6 | . 4 2 Power 2 | . 1 1 Propulsion 1 | . 1 . Utility . | . . . Weapon 3 | . 2 1 Highest Loss Streak 4 | . 4 2 To Critical Strikes . | . . . Average Slot Usage (%) 98 | . 98 97 Engine 12 | . 14 12 Treads 14 | . 15 14 Leg 12 | . 9 14 Wheel 1 | . 2 . Device 10 | . 5 14 Storage 17 | . 21 14 Energy Gun 21 | . 27 15 Launcher 6 | . . 12 Naked Turns . | . . . Heaviest Build 91 | 13 91 30 Greatest Support 40 | 20 40 10 Greatest Overweight (x) 9 | . 9 2 Average Overweight (x) 2 | . 2 2 Largest Inventory Capacity 25 | . 25 15 Average Capacity 16 | . 18 15 Most Carried 9 | . 9 9 Average Carried 7 | . 6 7 Final Capacity 15 | 8 15 15 Final Carried 9 | 6 7 9 Class Distribution -------------------- 100% | Mutant Dominant Class ---------------- Mutant | -10/Materials Mutant | -10/Mines Resources | -11 -10 -10 ----------- Run | Jun Mat Min Matter Collected 462 | 187 263 12 Remotely . | . . . Salvage Created 382 | . 370 12 Parts 19 | . 19 . Haulers Intercepted . | . . . Recyclers Shooed . | . . . Parts Field Recycled . | . . . Retrieved Matter . | . . . Parts Self-Destructed . | . . . Prevented . | . . . Kills | -11 -10 -10 ------- Run | Jun Mat Min Combat Hostiles Destroyed 10 | . 8 2 Guns 7 | . 6 1 AOE 1 | . . 1 Classes Destroyed 4 | . 3 1 Builder 1 | . 1 . Watcher 1 | . 1 . Grunt 8 | . 8 . Sentry 2 | . . 2 Best Kill Streak 2 | . 2 2 Combat Bots Only 2 | . 2 2 Max Kills in Single Turn 1 | . 1 1 Gunslinging . | . . . Exploded 1 | . . 1 Melee . | . . . Uniques/NPCs Destroyed . | . . . Combat | -11 -10 -10 -------- Run | Jun Mat Min Damage Taken 974 | . 600 374 Core 263 | . 125 138 Absorbed by Shields . | . . . Core Remaining (%) 100 | 100 . . Volleys Fired 57 | . 48 9 Largest 2 | . 2 2 Hottest 90 | . 90 70 Shots Fired 95 | . 79 16 Gun 88 | . 79 9 Cannon . | . . . Launcher 7 | . . 7 Special . | . . . Kinetic . | . . . Thermal 88 | . 79 9 Explosive 7 | . . 7 Electromagnetic . | . . . Robot Hit Streak 13 | . 13 4 Robot Miss Streak 2 | . 2 1 Penetration Max . | . . . Secondary Targets . | . . . Shots Hit Robots 65 | . 53 12 Core Hits 25 | . 17 8 Critical Kills . | . . . Critical Parts Destroyed . | . . . Critical Strikes 6 | . 6 . Burn 6 | . 6 . Melee Attacks . | . . . Impact . | . . . Slashing . | . . . Piercing . | . . . Sneak Attacks . | . . . Combat Hostiles . | . . . Follow-up Attacks . | . . . Damage Inflicted 888 | . 637 251 Guns 702 | . 637 65 Cannons . | . . . Explosions 186 | . . 186 Melee . | . . . Ramming . | . . . Kinetic . | . . . Thermal 702 | . 637 65 Explosive 186 | . . 186 Electromagnetic . | . . . Impact . | . . . Slashing . | . . . Piercing . | . . . Highest Corruption . | . . . Average Corruption . | . . . Corruption Purged . | . . . Corruption Blocked . | . . . Overload Shots . | . . . Overflow Damage . | . . . Projectiles . | . . . Explosions . | . . . Melee . | . . . Knockbacks . | . . . Impact . | . . . Kinetic . | . . . Secondary . | . . . Self-Inflicted Damage 7 | . . 7 Shots 1 | . . 1 Rammed . | . . . Targets Rammed . | . . . Kicked . | . . . Crushed . | . . . Highest Temperature 316 | . 316 . Average Temperature 112 | . 112 . Received Heat Transfer 417 | . 327 90 Effects 3 | . 3 . Energy Bleed 1 | . 1 . Interference 2 | . 2 . Siege Activations . | . . . Robots Corrupted . | . . . Combat Hostiles . | . . . Parts Fried . | . . . Impact Corruptions . | . . . Robots Melted 2 | . 2 . Combat Hostiles 2 | . 2 . Parts Melted 4 | . 4 . Heat Transferred 2267 | . 2117 150 Parts Sabotaged . | . . . Parts Stolen . | . . . Parts Stripped . | . . . Power Chain Reactions . | . . . Missiles Intercepted . | . . . Alert | -11 -10 -10 ------- Run | Jun Mat Min Peak Influence 97 | . 97 57 Initial . | . . . Average 29 | . 56 6 Maximum Alert Level . | . . . Low Security (%) 100 | . 100 100 Level 1 . | . . . Level 2 . | . . . Level 3 . | . . . Level 4 . | . . . Level 5 . | . . . High Security . | . . . Max Security . | . . . Squads Dispatched 1 | . 1 . Investigation . | . . . Extermination . | . . . Reinforcement 1 | . 1 . Assault . | . . . Garrison . | . . . Intercept . | . . . Searches Triggered . | . . . Construction Impeded . | . . . Haulers Reinforced . | . . . Active Scanning Responses . | . . . Cargo Convoy Interrupts . | . . . Stealth | -11 -10 -10 --------- Run | Jun Mat Min Distress Signals 1 | . 1 . Communications Jammed . | . . . Distress Signals . | . . . Times Spotted 17 | . 12 5 Peak Tracking Total 4 | . 4 3 Tactical Retreats 1 | . 1 . Traps | -11 -10 -10 ------- Run | Jun Mat Min Traps Triggered . | . . . Indirectly . | . . . Trap Hack Attempts . | . . . Triggered . | . . . Disarmed . | . . . Reprogrammed . | . . . Reused . | . . . Traps Extracted . | . . . Installed . | . . . Triggered . | . . . Most Traps Carried 2 | . . 2 Machines | -11 -10 -10 ---------- Run | Jun Mat Min Machines Disabled 2 | . . 2 Max in Single Turn 2 | . . 2 Machines Repaired . | . . . Machines Sabotaged . | . . . Overloaded Fab Kills . | . . . Hacking | -11 -10 -10 --------- Run | Jun Mat Min Machines Accessed 3 | . 3 . Terminals 2 | . 2 . Fabricators . | . . . Repair Stations . | . . . Recycling Units 1 | . 1 . Scanalyzers . | . . . Garrison Access . | . . . Total Hacks 3 | . 3 . Successful 1 | . 1 . Failed 2 | . 2 . Catastrophic 2 | . 2 . Database Lockouts . | . . . Manual 2 | . 2 . Terminals 2 | . 2 . Fabricators . | . . . Repair Stations . | . . . Recycling Units 1 | . 1 . Scanalyzers . | . . . Garrison Access . | . . . Terminal Hacks . | . . . Fabricator Hacks . | . . . Repair Station Hacks . | . . . Recycling Unit Hacks 1 | . 1 . Retrieve Components 1 | . 1 . Scanalyzer . | . . . Garrison Access Hacks . | . . . Unauthorized Hacks . | . . . Terminals . | . . . Fabricators . | . . . Repair Stations . | . . . Recycling Units . | . . . Scanalyzers . | . . . Garrison Access . | . . . Data Cores Recovered . | . . . Used . | . . . Hacking Detections 2 | . 2 . Full Trace Events . | . . . Feedback Events . | . . . Feedback Blocked . | . . . Robot Schematics Acquired . | . . . Robots Built . | . . . Authchips . | . . . Time . | . . . Total Robot Build Rating . | . . . Part Schematics Acquired . | . . . Parts Built . | . . . Authchips . | . . . Time . | . . . Total Part Build Rating . | . . . Parts Repaired . | . . . Time . | . . . Parts Recycled . | . . . Recycled Matter . | . . . Retrieved Matter . | . . . Retrieved Components 4 | . 4 . Parts Scanalyzed . | . . . Part Schematics Acquired . | . . . Parts Damaged . | . . . Bothacking | -11 -10 -10 ------------ Run | Jun Mat Min Used RIF Installer . | . . . Robots Hacked . | . . . Non-combat . | . . . Combat . | . . . Robot Hacks Applied . | . . . Relay Couplers Released . | . . . Fabnet Peak Effective % . | . . . Robots Rewired . | . . . Allies Hacked . | . . . Hacks Repelled . | . . . Allies | -11 -10 -10 -------- Run | Jun Mat Min Total Allies 3 | . . 3 Largest Group 3 | . . 3 Highest-Rated Group 78 | . . 78 Highest-Rated Ally 31 | . . 31 Total Orders . | . . . Ally Attacks 1 | . . 1 Total Damage 22 | . . 22 Kills . | . . . Allies Corrupted . | . . . Allies Melted . | . . . Intel | -11 -10 -10 ------- Run | Jun Mat Min Robot Analysis Total . | . . . Derelict Logs Recovered . | . . . Drone Launches . | . . . Drone Recoveries . | . . . Exploration | -11 -10 -10 ------------- Run | Jun Mat Min Turns Passed 1942 | . 899 1043 Spaces Moved 719 | 1 329 389 Core . | . . . Treads 77 | . 77 . Legs 594 | 1 204 389 Wheels 48 | . 48 . Hover . | . . . Flight . | . . . Fastest Speed 110 | 120 110 260 Average Speed 242 | 120 223 260 Slowest Speed 320 | 120 320 260 Overloaded Moves . | . . . Propulsion Burnouts . | . . . Robots Hopped . | . . . Cave-ins Triggered . | . . . Exploration Rate (%) 46 | 2 52 84 Regions Visited 2 Branch Regions 1 Pre-discovered Areas . | . . . Known Exits Taken . | . . . Unknown Exits Taken 2 | 1 1 . Scrap Searched 1 | . . 1 Spaces Dug . | . . . Terrain Destroyed 29 | . . 29 Melee . | . . . Projectile . | . . . AOE 29 | . . 29 Terrain Rammed . | . . . Walls Destroyed . | . . . Machines Disabled . | . . . Actions | -11 -10 -10 --------- Run | Jun Mat Min Total 818 | . 413 405 Wait 17 | . 17 . Move 717 | . 328 389 Hop . | . . . Pick Up 10 | . 6 4 Fast Attach 4 | . 4 . Attach 5 | . 3 2 Detach 1 | . 1 . Swap 6 | . 5 1 Drop 1 | . 1 . Fire 57 | . 48 9 Melee . | . . . Ram . | . . . Kick . | . . . Crush . | . . . Escape Stasis . | . . . Rewire . | . . . Trap . | . . . Miscellaneous . | . . . Route ------- -11/Junkyard -10/Materials (discovered 3 exits: [*Mat x2] / [*Min]) -10/Mines History --------- Turn | Location | Event 1 | -11/Junkyard | Discovered new exit (range 0) 1 | -11/Junkyard | Entered Materials 259 | -10/Materials | Discovered new exit (range 12) 302 | -10/Materials | Build established: Mutant 627 | -10/Materials | Lost 4 parts (1p1n2w) 740 | -10/Materials | Discovered new exit (range 13) 816 | -10/Materials | Discovered new exit (range 8) 900 | -10/Materials | Entered Mines 1175 | -10/Mines | Core integrity fell below 50% 1187 | -10/Mines | Core integrity fell below 20% 1419 | -10/Mines | Received a Mining Laser from a helpful Derelict 1771 | -10/Mines | Found a hidden stash of uninstalled traps 1943 | -10/Mines | Destroyed by 2I-JDV(g) with Beamcaster Last Messages --------------- 01244_ K-01 Serf collects debris. 01248_ U-05 Engineer lays Concrete. 01251_ K-01 Serf collects debris. 01337_ A pair of derelicts emerge from the shadows: "We're, um, lost. You wouldn't happen to know the way out of here, would you?" 01417_ A derelict emerges from the shadows: "What are you doing alone down here?" 01419_ NC-GCE(g): "And why aren't you carrying a mining laser?! Certainly you don't want THEM to uncover you when the ceiling comes crashing down? Here, take my spare." 01422_ NC-GCE(g): "You're apparently new around these parts, I'll cover you." 01425_ NC-GCE(g): "Mining lasers are a lot more useful than you might think..." 01458_ Acquired Mining Laser. 01676_ NC-GCE(g): "You look like you can take it from here!" 01676_ NC-GCE(g) slips back into the shadows. 01771_ A stash of uninstalled traps is collected here! 01823_ Acquired Blade Trap. 01940_ S-10 Pest: "SECOND INTRUDER APPROACHING. ELIMINATE." Map ----- +----------------------------------------------------+ | | | | | | | | | | | | | | | | | | | | | | | ?????????????????????????????????????????????????? | | #????????????????????????#####???????????????????? | | ##??????????????????????? ???????????????????? | | #??????????????????????? ????????????????????? | | #??????????????????????? ????????????????????? | | #??????????????????????? ????????????????????? | | ##?????????????????????? ????????????????????? | | #?????????????????????? #????????????????????? | | #??????????????????????# #????????????????????? | | #?????####?????????????# #????????????????????? | | ##????## ##????????????#$s#????????????????????? | | ##?????# ###??????????# #????????????????????? | | #??????# ###????????#s #????????????????????? | | ????????# ########## #????????????????????? | | #????????# @ #????????????????????? | | ###?????## z g #????????????????????? | | ##???## #############????????????????????? | | #??## ##???????????????????????????##### | | #??# #####???????????????????????# | | ##?## #?????????????????####### " | | ##?## ##????????????????? " | | #### #???????????????????? " | | ## #??????????????????????# | | #### ##??????????????????????# | | #### ##??# #####???????????????????????# | | #??## ##???# ###?????????????????????????# | | # #???#####????# #?????????????????????????##### | | ###????????????## ##### #????????????????######## | | ?????????????#### #?????????????#### | | ??????######## # #### ##????????????## | | ###??## #?????????????????## | | ##?# ##????????????????# | | ### ### #????????????# # | | ## #????????????# ### | | ## ## ######???????????## #?? | | ### ### ##???????????????# """ ##? | | ??# ##### ##??????????????# """ #? | | ??# ##?## ###????????????# """ ## | | ?## #??## ### ##???????????## # | +----------------------------------------------------+ Best States ------------- Heat Dissipation 35 Energy Generation 10 Energy Capacity 250 Matter Stores 337 Matter Capacity 450 Sight Range 16 Terrain Scan Density 10 Evasion (%) 55 Recoil Reduction 2 Item Schematics ----------------- None Robot Schematics ------------------ None Fabricated ------------ Nothing Alien Tech Used ----------------- None Achievements -------------- None Challenges ------------ None Game ------ Seed ScrapWarpShifter Manual? 0 Play Time 00:08:02 Cumulative 140.9 hours Start 2023.07.13 @ 01:07:43 End 2023.07.13 @ 01:23:26 Sessions 2 Manual Loads 0 Difficulty Rogue Special Mode None Game No. 161 Rogue 138 Adventurer 19 Explorer 4 Win Type - Total 1 Types 0/0/1/0/0/0/0/0/0 Lore% 52 Gallery% 58 Achievement% 47 Wizard Run 0 Options --------- ASCII 1 Keyboard 1 Movement Vi Keybinds 0 Fullscreen 1 Font 18/Terminus Map View 76x50 Tactical HUD 1 Map Filters NONE Filters SATURATION(80) Steam 1 RUN: c6b62bbc-fa14-4237-a9a6-4d80bc0d65d7